Workbook

Sheet CHI PHÍ TU SỬA
B1: CÔNG CỤ TÍNH CHI PHÍ TU SỬA NHÀ BẾP
B3: Thể loại | C3: Mục | D3: Số lượng | E3: Chi phí ước tính | F3: Chi phí thực tế | G3: Tổng chi phí ước tính | H3: Tổng chi phí thực tế
B4: Tủ | C4: Tủ dưới: Mô-đun - tiêu chuẩn (số lượng theo foot dài) | D4: 25 | E4: 5.00 ₫ | G4: =Dữ_liệu[[#This Row],[Số lượng]]*Dữ_liệu[[#This Row],[Chi phí ước tính]] -> 125 ₫ | H4: =Dữ_liệu[[#This Row],[Số lượng]]*Dữ_liệu[[#This Row],[Chi phí thực tế]] -> 0 ₫
B5: Tủ | C5: Tủ trên: Mô-đun - tiêu chuẩn (số lượng theo foot dài) | D5: 25 | E5: 3.50 ₫ | G5: =Dữ_liệu[[#This Row],[Số lượng]]*Dữ_liệu[[#This Row],[Chi phí ước tính]] -> 88 ₫ | H5: =Dữ_liệu[[#This Row],[Số lượng]]*Dữ_liệu[[#This Row],[Chi phí thực tế]] -> 0 ₫
B6: Thiết bị vệ sinh | C6: Máy rửa bát: Tiêu chuẩn | D6: 1 | E6: 250.00 ₫ | G6: =Dữ_liệu[[#This Row],[Số lượng]]*Dữ_liệu[[#This Row],[Chi phí ước tính]] -> 250 ₫ | H6: =Dữ_liệu[[#This Row],[Số lượng]]*Dữ_liệu[[#This Row],[Chi phí thực tế]] -> 0 ₫
B7: Thiết bị vệ sinh | C7: Máy nghiền rác: Tiêu chuẩn | D7: 1 | E7: 175.00 ₫ | G7: =Dữ_liệu[[#This Row],[Số lượng]]*Dữ_liệu[[#This Row],[Chi phí ước tính]] -> 175 ₫ | H7: =Dữ_liệu[[#This Row],[Số lượng]]*Dữ_liệu[[#This Row],[Chi phí thực tế]] -> 0 ₫
B8: Thiết bị nấu ăn | C8: Phạm vi: Trượt vào tiêu chuẩn | D8: 1 | E8: 375.00 ₫ | G8: =Dữ_liệu[[#This Row],[Số lượng]]*Dữ_liệu[[#This Row],[Chi phí ước tính]] -> 375 ₫ | H8: =Dữ_liệu[[#This Row],[Số lượng]]*Dữ_liệu[[#This Row],[Chi phí thực tế]] -> 0 ₫
B9: Thiết bị nấu ăn | C9: Lò vi sóng: Tiêu chuẩn | D9: 1 | E9: 300.00 ₫ | G9: =Dữ_liệu[[#This Row],[Số lượng]]*Dữ_liệu[[#This Row],[Chi phí ước tính]] -> 300 ₫ | H9: =Dữ_liệu[[#This Row],[Số lượng]]*Dữ_liệu[[#This Row],[Chi phí thực tế]] -> 0 ₫
B10: Kệ bếp | C10: Bề mặt rắn (số lượng theo foot dài) | D10: 23 | E10: 10.00 ₫ | G10: =Dữ_liệu[[#This Row],[Số lượng]]*Dữ_liệu[[#This Row],[Chi phí ước tính]] -> 230 ₫ | H10: =Dữ_liệu[[#This Row],[Số lượng]]*Dữ_liệu[[#This Row],[Chi phí thực tế]] -> 0 ₫
B11: Cửa | C11: Bên trong: Lõi đặc ốp dán | D11: 1 | E11: 65.00 ₫ | G11: =Dữ_liệu[[#This Row],[Số lượng]]*Dữ_liệu[[#This Row],[Chi phí ước tính]] -> 65 ₫ | H11: =Dữ_liệu[[#This Row],[Số lượng]]*Dữ_liệu[[#This Row],[Chi phí thực tế]] -> 0 ₫
B12: Thiết bị bổ sung | C12: Thiết bị bổ sung: Tiêu chuẩn nước nóng tức thì | D12: 1 | E12: 120.00 ₫ | G12: =Dữ_liệu[[#This Row],[Số lượng]]*Dữ_liệu[[#This Row],[Chi phí ước tính]] -> 120 ₫ | H12: =Dữ_liệu[[#This Row],[Số lượng]]*Dữ_liệu[[#This Row],[Chi phí thực tế]] -> 0 ₫
B13: Thiết bị bổ sung | C13: Thiết bị bổ sung: Bình xịt xà phòng | D13: 1 | E13: 40.00 ₫ | G13: =Dữ_liệu[[#This Row],[Số lượng]]*Dữ_liệu[[#This Row],[Chi phí ước tính]] -> 40 ₫ | H13: =Dữ_liệu[[#This Row],[Số lượng]]*Dữ_liệu[[#This Row],[Chi phí thực tế]] -> 0 ₫
B14: Vòi | C14: Vòi: Cần gạt, tiêu chuẩn | D14: 1 | E14: 130.00 ₫ | G14: =Dữ_liệu[[#This Row],[Số lượng]]*Dữ_liệu[[#This Row],[Chi phí ước tính]] -> 130 ₫ | H14: =Dữ_liệu[[#This Row],[Số lượng]]*Dữ_liệu[[#This Row],[Chi phí thực tế]] -> 0 ₫
B15: Sàn | C15: Tấm lát (số lượng theo foot vuông) | D15: 165 | E15: 3.50 ₫ | G15: =Dữ_liệu[[#This Row],[Số lượng]]*Dữ_liệu[[#This Row],[Chi phí ước tính]] -> 578 ₫ | H15: =Dữ_liệu[[#This Row],[Số lượng]]*Dữ_liệu[[#This Row],[Chi phí thực tế]] -> 0 ₫
B16: Thiết bị giặt là | C16: Máy giặt: Tiêu chuẩn | D16: 1 | E16: 500.00 ₫ | G16: =Dữ_liệu[[#This Row],[Số lượng]]*Dữ_liệu[[#This Row],[Chi phí ước tính]] -> 500 ₫ | H16: =Dữ_liệu[[#This Row],[Số lượng]]*Dữ_liệu[[#This Row],[Chi phí thực tế]] -> 0 ₫
B17: Thiết bị giặt là | C17: Máy sấy: Tiêu chuẩn | D17: 1 | E17: 375.00 ₫ | G17: =Dữ_liệu[[#This Row],[Số lượng]]*Dữ_liệu[[#This Row],[Chi phí ước tính]] -> 375 ₫ | H17: =Dữ_liệu[[#This Row],[Số lượng]]*Dữ_liệu[[#This Row],[Chi phí thực tế]] -> 0 ₫
B18: Đèn | C18: Đèn: Bình âm tường | D18: 4 | E18: 35.00 ₫ | G18: =Dữ_liệu[[#This Row],[Số lượng]]*Dữ_liệu[[#This Row],[Chi phí ước tính]] -> 140 ₫ | H18: =Dữ_liệu[[#This Row],[Số lượng]]*Dữ_liệu[[#This Row],[Chi phí thực tế]] -> 0 ₫
B19: Tủ lạnh | C19: Tủ lạnh: Đứng tự do, sang trọng | D19: 1 | E19: 1,200.00 ₫ | G19: =Dữ_liệu[[#This Row],[Số lượng]]*Dữ_liệu[[#This Row],[Chi phí ước tính]] -> 1,200 ₫ | H19: =Dữ_liệu[[#This Row],[Số lượng]]*Dữ_liệu[[#This Row],[Chi phí thực tế]] -> 0 ₫
B20: Chậu | C20: Chậu rửa kép thép không gỉ sang trọng | D20: 1 | E20: 125.00 ₫ | G20: =Dữ_liệu[[#This Row],[Số lượng]]*Dữ_liệu[[#This Row],[Chi phí ước tính]] -> 125 ₫ | H20: =Dữ_liệu[[#This Row],[Số lượng]]*Dữ_liệu[[#This Row],[Chi phí thực tế]] -> 0 ₫
B21: Thông gió | C21: Thiết bị hút mùi: Đường ống tiêu chuẩn | D21: 1 | E21: 180.00 ₫ | G21: =Dữ_liệu[[#This Row],[Số lượng]]*Dữ_liệu[[#This Row],[Chi phí ước tính]] -> 180 ₫ | H21: =Dữ_liệu[[#This Row],[Số lượng]]*Dữ_liệu[[#This Row],[Chi phí thực tế]] -> 0 ₫
B22: Tường | C22: Tủ tường (số lượng theo foot vuông) | D22: 70 | E22: 2.00 ₫ | G22: =Dữ_liệu[[#This Row],[Số lượng]]*Dữ_liệu[[#This Row],[Chi phí ước tính]] -> 140 ₫ | H22: =Dữ_liệu[[#This Row],[Số lượng]]*Dữ_liệu[[#This Row],[Chi phí thực tế]] -> 0 ₫
B23: Cửa sổ | C23: Hệ thống trượt | D23: 2 | E23: 120.00 ₫ | G23: =Dữ_liệu[[#This Row],[Số lượng]]*Dữ_liệu[[#This Row],[Chi phí ước tính]] -> 240 ₫ | H23: =Dữ_liệu[[#This Row],[Số lượng]]*Dữ_liệu[[#This Row],[Chi phí thực tế]] -> 0 ₫
B24: Khác | G24: =Dữ_liệu[[#This Row],[Số lượng]]*Dữ_liệu[[#This Row],[Chi phí ước tính]] -> 0 ₫ | H24: =Dữ_liệu[[#This Row],[Số lượng]]*Dữ_liệu[[#This Row],[Chi phí thực tế]] -> 0 ₫
B25: Tổng | E25: =SUBTOTAL(109,Dữ_liệu[Chi phí ước tính]) -> 4,014.00 ₫ | F25: =SUBTOTAL(109,Dữ_liệu[Chi phí thực tế]) -> 0.00 ₫ | G25: =SUBTOTAL(109,Dữ_liệu[Tổng chi phí ước tính]) -> 5,375.00 ₫ | H25: =SUBTOTAL(109,Dữ_liệu[Tổng chi phí thực tế]) -> 0.00 ₫
B26: Tổng phụ | G26: =SUBTOTAL(109,Dữ_liệu[Tổng chi phí ước tính]) -> 5,375.00 ₫ | H26: =SUBTOTAL(109,Dữ_liệu[Tổng chi phí thực tế]) -> 0.00 ₫
B27: Chi phí ngoài dự kiến - Thêm 30% | G27: =G26*0.3 -> 1,612.50 ₫ | H27: =H26*0.3 -> 0.00 ₫
B28: Tổng cộng | G28: =SUM(G26:G27) -> 6,987.50 ₫ | H28: =SUM(H26:H27) -> 0.00 ₫
